bitfinex-derivatives/quotes_SOLF0:USTF0_20250211
["timestamp","ask_amount","ask_price","bid_price","bid_amount"]
[1739284123944,0.03452518,199.29,199.26,0.03234223]
[1739284124642,5.05152518,199.29,199.26,0.03234223]
[1739284124845,0.03452518,199.29,199.26,0.03234223]
[1739284125144,0.03452518,199.29,199.28,5.0173]
[1739284128139,13.59788286,199.39,199.27,13.59788286]
[1739284128343,16.64438286,199.39,199.31,5.0164]
[1739284128548,16.64438286,199.39,199.27,13.59788286]
[1739284128734,16.64438286,199.39,199.28,5.017]
[1739284129139,16.64438286,199.39,199.24,13.59788286]
[1739284129336,0.03341361,199.33,199.3,0.03407064]
[1739284129736,5.0165,199.31,199.3,0.03407064]
[1739284129937,0.03341361,199.33,199.24,13.59788286]
[1739284130446,0.03341361,199.33,199.18,20.85624118]
[1739284130447,5.017,199.29,199.25,5.018]
[1739284130845,5.0168,199.3,199.25,5.0178]
[1739284131344,5.05081175,199.29,199.26,0.03627658]
[1739284131743,0.03371175,199.29,199.26,0.03627658]
[1739284132045,5.0175,199.27,199.26,0.03627658]
[1739284132240,1.60861175,199.29,199.2,5.0193]
[1739284132443,1.5749,199.29,199.2,5.0193]
[1739284132645,5.0182,199.25,199.2,5.0193]
[1739284132945,1.5749,199.29,199.17,13.59788286]
[1739284133145,5.0175,199.27,199.17,13.59788286]
[1739284133339,0.03258363,199.25,199.23,5.0185]
[1739284133543,0.03258363,199.25,199.21,0.03367663]
[1739284133943,0.03258363,199.25,199.21,5.05267663]
[1739284134144,0.03258363,199.25,199.21,0.03367663]
[1739284135341,5.05058363,199.25,199.21,5.05247663]
[1739284136342,5.05058363,199.25,199.21,0.03367663]
[1739284136647,0.03258363,199.25,199.24,5.0183]
[1739284138840,0.03258363,199.25,199.21,0.03367663]
[1739284139051,0.03258363,199.25,199.22,5.0186]
[1739284139743,5.05058363,199.25,199.22,5.0186]
[1739284139949,5.05058363,199.25,199.21,0.03367663]
[1739284139950,5.05058363,199.25,199.21,5.05257663]
[1739284140345,0.03258363,199.25,199.22,5.0187]
[1739284140746,0.03258363,199.25,199.21,0.03367663]
[1739284140953,5.0187,199.23,199.21,0.03367663]
[1739284142857,0.03258363,199.25,199.21,0.03367663]
[1739284143556,5.0184,199.24,199.21,0.03367663]
[1739284144050,0.03258363,199.25,199.21,0.03367663]
[1739284144256,0.03258363,199.25,199.23,5.0184]
[1739284145456,0.03258363,199.25,199.24,5.0183]
[1739284151663,206.18208286,199.39,199.29,5.0169]
[1739284151863,15.18208286,199.39,199.29,5.0169]
[1739284152062,15.18208286,199.39,199.26,13.59788286]
[1739284152267,5.0158,199.34,199.3,5.0167]
[1739284152762,0.03349793,199.34,199.31,5.0163]
[1739284153164,0.03349793,199.34,199.3,0.03293316]
[1739284153865,5.04929793,199.34,199.3,0.03293316]
[1739284154260,0.03349793,199.34,199.31,5.0164]
[1739284154763,0.03349793,199.34,199.3,5.04963316]
[1739284154964,0.03349793,199.34,199.3,0.03293316]
[1739284155165,5.0165,199.31,199.3,0.03293316]
[1739284156162,1.57429793,199.34,199.3,0.03293316]
[1739284156465,5.0165,199.32,199.3,0.03293316]
[1739284156668,1.57429793,199.34,199.3,0.03293316]
[1739284156868,5.0165,199.31,199.3,0.03293316]
[1739284158669,1.57429793,199.34,199.3,0.03293316]
[1739284160069,5.016,199.33,199.3,0.03293316]
[1739284160368,1.57429793,199.34,199.3,0.03293316]
[1739284161468,5.0165,199.31,199.3,0.03293316]
[1739284162566,1.57429793,199.34,199.3,0.03293316]
[1739284162768,5.0163,199.32,199.3,0.03293316]
[1739284163274,5.0161,199.33,199.3,5.04963316]
[1739284165668,0.03349793,199.34,199.3,0.03293316]
[1739284167075,5.0162,199.33,199.3,5.04963316]
[1739284167577,0.03349793,199.34,199.3,0.03293316]
[1739284167777,5.0163,199.32,199.3,0.03293316]
[1739284167979,0.03349793,199.34,199.3,0.03293316]
[1739284168178,5.04929793,199.34,199.31,5.0164]
[1739284169181,5.04929793,199.34,199.3,5.04963316]
[1739284169380,0.03349793,199.34,199.3,5.04963316]
[1739284169677,5.0161,199.33,199.3,5.04963316]
[1739284170674,5.04929793,199.34,199.3,5.04963316]
[1739284171478,5.04929793,199.34,199.31,5.0165]
[1739284172181,5.0162,199.33,199.3,0.03293316]
[1739284173178,5.0162,199.33,199.3,5.04963316]
[1739284173877,8.69691259,199.33,199.3,0.03293316]
[1739284174176,8.69691259,199.31,199.3,0.03293316]
[1739284174679,13.71341259,199.31,199.3,0.03293316]
[1739284174979,8.69691259,199.31,199.25,5.0178]
[1739284175181,5.0172,199.29,199.26,5.0177]
[1739284175575,13.5985525,199.31,199.19,22.31634118]
[1739284175778,1.5712,199.3,199.23,5.0183]
[1739284175974,0.03629455,199.27,199.23,5.05482509]
[1739284176283,5.05379455,199.27,199.23,5.05482509]
[1739284177682,0.03629455,199.27,199.23,5.05482509]
[1739284177879,5.0178,199.26,199.23,5.05482509]
[1739284178079,0.03629455,199.27,199.24,5.0183]
[1739284178881,0.03629455,199.27,199.23,5.05502509]
[1739284179081,0.03629455,199.27,199.23,0.03652509]
[1739284179483,5.05399455,199.27,199.23,5.05502509]
[1739284179988,0.03629455,199.27,199.23,0.03652509]
[1739284180479,5.0178,199.26,199.23,0.03652509]
[1739284180683,0.03629455,199.27,199.23,0.03652509]
[1739284182186,5.0178,199.26,199.23,0.03652509]
[1739284182387,0.03629455,199.27,199.23,0.03652509]
[1739284184290,5.0182,199.25,199.23,0.03652509]
[1739284185396,0.03629455,199.27,199.23,0.03652509]
[1739284186790,5.0183,199.24,199.23,0.03652509]
[1739284186989,0.03629455,199.27,199.23,0.03652509]
[1739284187491,5.0183,199.24,199.23,0.03652509]
[1739284187692,13.5985525,199.25,199.14,1.5302]
[1739284187993,13.5985525,199.22,199.13,20.85624118]
[1739284188194,1.5843,199.21,199.13,20.85624118]
[1739284188388,5.0205,199.16,199.12,5.0212]
[1739284188795,1.5843,199.21,199.11,20.85624118]
[1739284189100,0.03251347,199.16,199.12,0.03489582]
[1739284191995,13.63106597,199.16,199.12,0.03489582]
[1739284192586,5.021,199.13,199.12,0.03489582]
[1739284197097,5.021,199.14,199.12,0.03489582]
[1739284197699,13.73596654,199.14,199.12,0.03489582]
[1739284197899,5.021,199.13,199.12,0.03489582]
[1739284199294,13.73576654,199.14,199.12,0.03489582]
[1739284200102,8.71496654,199.14,199.12,0.03489582]
[1739284200402,0.03251347,199.16,199.13,8.71496654]
[1739284200604,0.03251347,199.16,199.14,5.0208]
[1739284200805,0.03251347,199.16,199.15,8.71496654]
[1739284201200,0.03251347,199.16,199.15,13.73546654]
[1739284201698,0.03251347,199.16,199.15,5.0205]
[1739284202601,0.03251347,199.16,199.12,0.03489582]
[1739284203201,5.021,199.13,199.12,0.03489582]
[1739284203399,0.03251347,199.16,199.12,0.03489582]
[1739284205399,0.03251347,199.16,199.15,5.0205]
[1739284205802,0.03251347,199.16,199.12,13.64167658]
[1739284206002,0.03251347,199.16,199.13,5.021]
[1739284206197,0.03251347,199.16,199.12,0.03489582]
[1739284206604,0.03251347,199.16,199.15,5.0205]
[1739284207897,15.19358076,199.24,199.12,13.64167658]
[1739284208099,15.19358076,199.24,199.12,13.60678076]
[1739284208502,5.0192,199.21,199.14,5.0206]
[1739284208699,13.60678076,199.21,199.11,1.5413]
[1739284209109,0.03265619,199.18,199.16,5.0202]
[1739284210402,0.03265619,199.18,199.17,5.02]
[1739284212505,0.03265619,199.18,199.16,5.0202]
[1739284212706,0.03265619,199.18,199.14,0.03172727]
[1739284214110,5.0205,199.16,199.14,0.03172727]
[1739284214409,0.03265619,199.18,199.14,0.03172727]
[1739284215011,5.0203,199.16,199.14,0.03172727]
[1739284215412,0.03265619,199.18,199.14,0.03172727]
[1739284215710,5.0203,199.16,199.14,0.03172727]
[1739284215908,13.63943695,199.18,199.14,0.03172727]
[1739284216112,5.0205,199.15,199.14,0.03172727]
[1739284216611,13.63943695,199.18,199.14,0.03172727]
[1739284216612,0.03265619,199.18,199.14,0.03172727]
[1739284218324,5.05265619,199.18,199.14,5.05252727]
[1739284218827,0.03265619,199.18,199.15,5.0205]
[1739284219022,0.03265619,199.18,199.14,0.03172727]
[1739284219724,5.0205,199.15,199.14,0.03172727]
[1739284221519,13.60678076,199.15,199.05,3.1687]
[1739284221722,5.022,199.1,199.06,5.0226]
[1739284221923,13.60678076,199.15,199.05,1.6123]
[1739284222228,5.0215,199.12,199.05,1.6123]
[1739284222423,13.60678076,199.15,199.05,1.6123]
[1739284222622,5.0217,199.11,199.05,1.6123]
[1739284222927,0.037918,199.12,199.08,0.0374332]
[1739284223826,0.037918,199.12,199.09,5.022]
[1739284224026,0.037918,199.12,199.08,0.0374332]
[1739284224429,0.037918,199.12,199.11,5.0215]
[1739284225031,13.60678076,199.21,199.09,13.60678076]
[1739284225328,5.02,199.18,199.09,13.60678076]
[1739284225530,5.02,199.18,199.14,5.0206]
[1739284225731,5.02,199.18,199.12,13.60678076]
[1739284226234,5.02,199.18,199.14,5.0206]
[1739284226235,0.03267515,199.17,199.14,5.0206]
[1739284226534,0.03267515,199.17,199.16,5.0203]
[1739284228233,0.03267515,199.17,199.13,0.03590541]
[1739284229735,0.03267515,199.17,199.16,5.0203]
[1739284230930,5.0186,199.23,199.19,5.0194]
[1739284231432,5.0183,199.24,199.19,5.0194]
[1739284231833,15.07828076,199.27,199.14,1.5694]
[1739284231834,1.4715,199.27,199.23,5.0185]
[1739284232029,5.017,199.29,199.21,13.60678076]
[1739284232228,0.0360629,199.27,199.23,0.03428566]
[1739284232427,0.0360629,199.27,199.24,13.60678076]
[1739284232631,0.0360629,199.27,199.26,5.0177]
[1739284232926,1.6072,199.34,199.24,13.60678076]
[1739284233326,5.016,199.33,199.29,5.017]
[1739284233634,1.6072,199.34,199.24,13.60678076]
[1739284233835,1.6072,199.34,199.29,0.03425046]
[1739284233836,0.03393632,199.33,199.29,0.03425046]
[1739284234040,5.0163,199.32,199.29,0.03425046]
[1739284234433,0.03393632,199.33,199.29,0.03425046]
[1739284235132,0.03393632,199.33,199.32,5.0162]
[1739284237538,5.3433,199.35,199.34,5.0157]
[1739284237839,2.9122,199.35,199.34,5.0157]
[1739284238038,5.014,199.42,199.33,13.60678076]
[1739284238638,5.014,199.42,199.36,0.03273042]
[1739284238639,0.03733248,199.39,199.36,0.03273042]
[1739284239439,0.03733248,199.39,199.38,5.0147]
[1739284242547,1.474,199.47,199.42,5.0136]
[1739284242841,1.474,199.47,199.4,13.60678076]
[1739284243034,1.5185,199.48,199.4,13.60678076]
[1739284243236,15.12528076,199.48,199.34,13.60678076]
[1739284243532,15.12528076,199.48,199.39,5.0144]
[1739284243737,0.03250816,199.43,199.39,5.05111706]
[1739284244541,0.03250816,199.43,199.39,0.03671706]
[1739284245142,0.03250816,199.43,199.4,13.60678076]
[1739284246146,0.03250816,199.43,199.41,5.014]
[1739284246443,0.03250816,199.43,199.4,13.60678076]
[1739284246639,0.03250816,199.43,199.39,0.03671706]
[1739284247346,5.04600816,199.43,199.39,0.03671706]
[1739284247750,0.03250816,199.43,199.39,0.03671706]
[1739284248150,5.0138,199.42,199.39,0.03671706]
[1739284248848,0.03250816,199.43,199.39,0.03671706]
[1739284249150,13.60678076,199.42,199.31,13.60678076]
[1739284249448,1.4963,199.41,199.33,5.0158]
[1739284249644,1.4963,199.41,199.28,13.60678076]
[1739284250046,5.0155,199.36,199.28,13.60678076]
[1739284250459,0.03563562,199.34,199.3,0.03828568]
[1739284250644,0.03563562,199.34,199.31,5.0163]
[1739284251045,0.03563562,199.34,199.3,0.03828568]
[1739284252351,5.016,199.33,199.3,0.03828568]
[1739284252746,0.03563562,199.34,199.3,0.03828568]
[1739284253350,5.0162,199.33,199.3,0.03828568]
[1739284253942,0.03563562,199.34,199.3,0.03828568]
[1739284255546,0.03563562,199.34,199.31,5.0163]
[1739284255750,0.03563562,199.34,199.3,0.03828568]
[1739284256153,0.03563562,199.34,199.3,5.05478568]
[1739284256550,0.03563562,199.34,199.3,0.03828568]
[1739284256750,5.0164,199.32,199.3,0.03828568]
[1739284257151,1.6139,199.33,199.3,0.03828568]
[1739284258247,15.22068076,199.33,199.22,13.60678076]
[1739284258553,1.5915,199.32,199.22,13.60678076]
[1739284259359,0.03539098,199.29,199.26,5.0177]
[1739284259555,0.03539098,199.29,199.25,0.03774046]
[1739284260158,5.0175,199.27,199.25,0.03774046]
[1739284260348,0.03539098,199.29,199.25,0.03774046]
[1739284260553,13.60678076,199.27,199.16,13.60678076]
[1739284260753,13.60678076,199.27,199.13,13.60678076]
[1739284261355,5.0191,199.21,199.16,5.0202]
[1739284261658,0.03733303,199.2,199.17,0.03661389]
[1739284262054,13.60678076,199.24,199.17,0.03661389]
[1739284262255,0.0377533,199.2,199.1,13.60678076]
[1739284262656,0.0377533,199.2,199.19,0.03692381]
[1739284262856,0.0377533,199.2,199.1,13.60678076]
[1739284263158,5.0198,199.19,199.13,5.021]
[1739284263360,5.0198,199.19,199.13,5.05859243]
[1739284263658,0.0377533,199.2,199.13,0.03759243]
[1739284264359,5.0198,199.18,199.13,0.03759243]
[1739284264757,0.0377533,199.2,199.13,0.03759243]
[1739284265359,5.0570533,199.2,199.15,5.0205]
[1739284265558,0.0377533,199.2,199.13,0.03759243]
[1739284265956,5.0570533,199.2,199.15,5.0203]
[1739284266153,0.0377533,199.2,199.13,13.64437319]
[1739284266656,0.0377533,199.2,199.15,5.0205]
[1739284266864,0.0377533,199.2,199.13,13.64437319]
[1739284267567,5.0570533,199.2,199.13,13.64437319]
[1739284267765,0.0377533,199.2,199.13,13.64437319]
[1739284268057,0.0377533,199.2,199.15,5.0205]
[1739284268265,0.0377533,199.2,199.13,0.03759243]
[1739284268465,0.0377533,199.2,199.13,5.05839243]
[1739284268865,0.0377533,199.2,199.13,0.03759243]
[1739284268866,1.5398533,199.2,199.13,0.03759243]
[1739284269365,5.0208,199.14,199.07,13.60678076]
[1739284269555,13.60678076,199.18,199.09,5.022]
[1739284269761,13.60678076,199.18,199.04,13.60678076]
[1739284269963,5.0208,199.14,199.04,13.60678076]
[1739284270169,5.0208,199.14,199.08,5.0221]
[1739284270561,0.03169137,199.13,199.09,0.03797669]
[1739284270765,0.03169137,199.13,199.09,5.05987669]
[1739284271065,0.03169137,199.13,199.09,0.03797669]
[1739284271259,0.03169137,199.13,199.09,5.05997669]
[1739284271458,0.03169137,199.13,199.09,0.03797669]
[1739284272169,5.0218,199.11,199.09,0.03797669]
[1739284272367,0.03169137,199.13,199.01,13.60678076]
[1739284272672,5.0218,199.11,199.01,13.60678076]
[1739284272869,1.5389,199.14,199.01,13.60678076]
[1739284273169,5.0222,199.09,199.04,5.0231]
[1739284273368,5.0222,199.09,199.01,13.60678076]
[1739284273669,0.03256564,199.07,199.03,0.0335584]
[1739284274169,0.03256564,199.07,199.06,5.0228]
[1739284274969,0.03256564,199.07,199.05,5.023]
[1739284275171,0.03256564,199.07,199.03,0.0335584]
[1739284275573,0.03256564,199.07,199.03,5.0569584]
[1739284275973,5.05516564,199.07,199.03,5.0569584]
[1739284276174,0.03256564,199.07,199.03,0.0335584]
[1739284276771,5.0233,199.04,199.03,0.0335584]
[1739284276972,0.03256564,199.07,198.95,13.60678076]
[1739284277171,13.60678076,199.06,198.95,13.60678076]
[1739284277372,1.6082,199.05,198.97,5.0249]
[1739284277566,1.6082,199.05,198.95,13.60678076]
[1739284277874,1.6082,199.05,198.94,5.0256]
[1739284277875,13.60678076,199.03,198.94,5.0256]
[1739284278065,0.03353086,199.02,198.98,0.03268716]
[1739284278871,5.05733086,199.02,198.98,0.03268716]
[1739284279473,5.0242,199.01,198.98,0.03268716]
[1739284280773,5.05733086,199.02,198.98,0.03268716]
[1739284281774,5.0241,199.01,198.98,0.03268716]
[1739284281977,0.03353086,199.02,198.98,0.03268716]
[1739284282179,5.05733086,199.02,198.98,0.03268716]
[1739284282479,0.03353086,199.02,198.98,0.03268716]
[1739284282979,0.03353086,199.02,198.99,5.0245]
[1739284283172,0.03353086,199.02,198.98,0.03268716]
[1739284283674,1.5129,199.14,199.01,13.60678076]
[1739284283875,5.0213,199.12,199.04,13.60678076]
[1739284284067,4.6349,199.14,199.04,13.60678076]
[1739284284474,5.0212,199.13,199.09,5.022]
[1739284284676,4.6349,199.14,199.04,13.60678076]
[1739284284872,0.0361956,199.13,199.09,0.03267276]
[1739284285180,5.0201,199.17,199.12,5.0213]
[1739284285575,0.03174947,199.13,199.12,5.0213]
[1739284286569,0.03174947,199.13,199.1,5.0218]
[1739284286774,0.03174947,199.13,199.09,0.03413372]
[1739284287275,5.0215,199.11,199.05,5.0229]
[1739284287480,5.0215,199.11,198.97,21.77787587]
[1739284287778,5.0215,199.11,198.94,197.0474]
[1739284287779,21.77787587,199.11,198.94,218.82527587]
[1739284287980,21.77787587,199.08,198.94,24.82527587]
[1739284288279,21.77787587,199.08,198.86,90.34]
[1739284288280,5.05768085,199.03,198.99,0.03558092]
[1739284288581,1.5738,199.07,198.91,21.77787587]
[1739284288776,0.03751701,199.03,198.99,0.03209252]
[1739284289780,0.03751701,199.03,198.99,5.05669252]
[1739284289973,0.03751701,199.03,198.99,0.03209252]
[1739284290680,0.03751701,199.03,198.93,5.0259]
[1739284290880,1.5551,199.04,198.88,23.29027587]
[1739284291083,5.0238,199.02,198.97,5.025]
[1739284291275,1.5551,199.04,198.91,21.77787587]
[1739284291783,1.5551,199.04,198.96,0.03770637]
[1739284291784,0.03741412,198.99,198.96,0.03770637]
[1739284294183,5.06201412,198.99,198.96,0.03770637]
[1739284294382,0.03741412,198.99,198.96,0.03770637]
[1739284295282,5.0248,198.98,198.96,0.03770637]
[1739284295882,21.81528999,198.99,198.74,224.91764118]
[1739284296078,21.77787587,198.95,198.75,3.3334]
[1739284296283,5.0269,198.9,198.84,5.0283]
[1739284296482,5.0269,198.9,198.75,3.3334]
[1739284296680,2.9949,198.94,198.75,3.3334]
[1739284296887,5.0266,198.92,198.86,5.0277]
[1739284297090,0.03707983,198.89,198.85,0.03316663]
[1739284297487,0.03707983,198.89,198.86,5.0276]
[1739284297988,0.03707983,198.89,198.85,0.03316663]
[1739284298389,5.06417983,198.89,198.85,0.03316663]
[1739284298689,0.03707983,198.89,198.85,0.03316663]
[1739284298986,5.0275,198.88,198.85,0.03316663]
[1739284299190,0.03707983,198.89,198.85,0.03316663]
[1739284299990,0.03707983,198.89,198.86,5.0276]
[1739284300391,0.03707983,198.89,198.85,0.03316663]
[1739284300594,0.03707983,198.89,198.88,5.0273]
[1739284300996,0.03707983,198.89,198.85,0.03316663]
[1739284301995,5.06417983,198.89,198.85,0.03316663]
[1739284302188,0.03707983,198.89,198.85,0.03316663]
[1739284302491,0.03707983,198.89,198.86,5.0278]
[1739284302689,0.03707983,198.89,198.85,0.03316663]
[1739284303087,5.0276,198.88,198.85,0.03316663]
[1739284303489,0.03707983,198.89,198.85,0.03316663]
[1739284303695,5.0279,198.86,198.85,0.03316663]
[1739284305696,5.0275,198.88,198.85,0.03316663]
[1739284305899,0.03707983,198.89,198.85,0.03316663]
[1739284306397,21.8149557,198.89,198.85,0.03316663]
[1739284307101,5.0279,198.86,198.85,0.03316663]
[1739284307497,5.029,198.82,198.77,5.0301]
[1739284307696,21.77787587,198.86,198.71,21.77787587]
[1739284308100,5.0291,198.82,198.78,5.0296]
[1739284308299,1.5577,198.85,198.71,21.77787587]
[1739284308701,1.5577,198.85,198.77,5.0301]
[1739284308702,0.03208703,198.8,198.77,5.0301]
[1739284308897,0.03208703,198.8,198.76,0.033609]
[1739284309901,0.03208703,198.8,198.79,5.0296]
[1739284310100,1.4678,198.9,198.77,21.77787587]
[1739284310294,1.4811,198.93,198.8,21.77787587]
[1739284310803,1.5536,198.97,198.83,21.77787587]
[1739284311005,21.77787587,199.01,198.77,1.5859]
[1739284311006,1.4811,199.0,198.86,21.77787587]
[1739284311397,0.03547345,198.95,198.91,0.03857627]
[1739284312601,21.77787587,198.92,198.77,23.36377587]
[1739284312799,21.77787587,198.92,198.77,1.5859]
[1739284312995,21.77787587,198.89,198.77,1.5859]
[1739284314003,0.03796295,198.85,198.81,0.02711976]
[1739284314698,5.06626295,198.85,198.81,0.02711976]
[1739284314899,0.03796295,198.85,198.81,0.02711976]
[1739284315202,5.0289,198.82,198.81,0.02711976]
[1739284315795,0.03796295,198.85,198.75,5.0304]
[1739284316006,21.77787587,198.86,198.68,44.16801705]
[1739284316499,1.4792,198.9,198.71,21.77787587]
[1739284316500,21.77787587,198.89,198.71,21.77787587]
[1739284317101,0.03284928,198.82,198.71,21.77787587]
[1739284317602,0.03284928,198.82,198.74,21.77787587]
[1739284317802,21.77787587,198.89,198.74,21.77787587]
[1739284318006,0.03571145,198.8,198.74,21.77787587]
[1739284318202,1.4792,198.9,198.74,21.77787587]
[1739284318401,1.4792,198.9,198.75,0.262]
[1739284318802,5.0279,198.86,198.75,0.262]
[1739284318999,1.4792,198.9,198.74,21.77787587]
[1739284319203,21.77787587,198.86,198.71,21.77787587]
[1739284319405,0.0386261,198.84,198.8,0.03425054]
[1739284320606,0.0386261,198.84,198.83,5.0286]
[1739284320909,15.05,199.01,198.8,21.81212641]
[1739284321104,4.4984,198.97,198.9,5.0266]
[1739284321300,4.4984,198.97,198.83,21.77787587]
[1739284321505,5.0258,198.94,198.84,1.4671]
[1739284321705,4.4984,198.97,198.84,1.4671]
[1739284321706,4.4984,198.97,198.87,5.0276]
[1739284321899,4.4984,198.97,198.81,0.2891]
[1739284322208,0.03201001,198.94,198.81,0.2891]
[1739284322405,0.03201001,198.94,198.87,0.03680238]
[1739284322609,4.4984,198.97,198.87,0.03680238]
[1739284322610,21.81214393,198.92,198.87,0.03680238]
[1739284322810,21.77787587,198.89,198.79,5.0295]
[1739284323003,1.5618,198.88,198.72,0.2905]
[1739284323407,1.5377,198.87,198.72,0.2905]
[1739284323711,5.0289,198.82,198.72,0.2905]
[1739284323915,0.03639789,198.81,198.78,0.03193572]
[1739284324106,0.03639789,198.81,198.8,5.0294]
[1739284324611,0.03639789,198.81,198.78,0.03193572]
[1739284324806,5.06569789,198.81,198.78,0.03193572]
[1739284325010,0.03639789,198.81,198.78,0.03193572]
[1739284325309,0.03639789,198.81,198.8,5.0294]
[1739284328111,1.5692,198.91,198.78,0.03193572]
[1739284328406,4.6104,198.96,198.82,35.52092387]
[1739284328611,51.0496913,199.0,198.85,35.52092387]
[1739284328815,40.13132387,199.04,198.85,35.52092387]
[1739284329011,40.13132387,199.04,198.88,35.52092387]
[1739284329311,0.03634014,198.98,198.94,0.03721822]
[1739284330514,0.03634014,198.98,198.96,5.0252]
[1739284330714,0.03634014,198.98,198.94,0.03721822]
[1739284332112,5.06134014,198.98,198.94,0.03721822]
[1739284332309,0.03634014,198.98,198.94,0.03721822]
[1739284332820,35.52092387,199.1,198.94,35.55814209]
[1739284333214,35.52092387,199.1,198.94,35.52092387]
[1739284333519,5.0234,199.04,198.94,35.52092387]
[1739284333710,35.52092387,199.1,198.94,35.52092387]
[1739284333915,5.022,199.09,199.03,5.0233]
[1739284334116,0.03760778,199.04,199.0,0.03463484]
[1739284334513,5.0218,199.1,199.04,5.0231]
[1739284334810,35.52092387,199.09,198.93,35.52092387]
[1739284335010,35.55267738,199.09,199.05,0.03808708]
[1739284335212,0.03175351,199.09,198.96,35.52092387]
[1739284335413,0.03462098,199.03,198.99,0.03797019]
[1739284335812,5.022,199.09,199.04,5.0233]
[1739284336009,0.03777226,199.08,199.04,5.0233]
[1739284336220,5.0229,199.06,199.05,0.03820245]
[1739284336418,5.0229,199.06,198.96,35.52092387]
[1739284336613,0.0374601,199.07,199.04,0.03834905]
[1739284336817,38.73342387,199.13,198.96,35.52092387]
[1739284337020,0.03723168,199.07,199.04,0.03534625]
[1739284337213,0.03723168,199.07,198.91,3.0549]
[1739284337214,35.55815555,199.07,198.91,3.0549]
[1739284337518,1.5249,199.06,198.91,3.0549]
[1739284337917,1.5249,199.06,198.96,5.0251]
[1739284338415,5.0242,199.01,198.99,0.03665707]
[1739284338616,0.03754852,199.03,198.99,0.03665707]
[1739284339215,0.03754852,199.03,199.02,5.0238]
[1739284339419,5.022,199.1,198.99,35.55758094]
[1739284339615,3.2125,199.13,198.99,35.55758094]
[1739284339919,1.5249,199.17,199.02,35.52092387]
[1739284340222,5.0209,199.14,199.03,1.5231]
[1739284340521,37.03292387,199.19,199.03,1.5231]
[1739284340719,0.03176267,199.1,199.07,0.03189525]
[1739284341126,5.0216,199.11,199.03,1.5231]
[1739284341321,0.03855746,199.1,199.07,0.03580659]
[1739284342124,0.03855746,199.1,199.07,5.05830659]
[1739284342419,0.03855746,199.1,199.07,0.03580659]
[1739284342625,0.03855746,199.1,199.08,5.0223]
[1739284342924,1.4903,199.23,199.08,35.52092387]
[1739284343120,1.4903,199.23,199.11,35.52092387]
[1739284343523,1.4903,199.23,199.11,40.54232387]
[1739284343720,1.4903,199.23,199.11,35.52092387]
[1739284343925,0.03415027,199.19,199.15,0.03280471]
[1739284346728,5.0198,199.18,199.15,0.03280471]
[1739284346924,0.03415027,199.19,199.15,0.03280471]
[1739284347323,35.55507414,199.19,199.04,1.5854]
[1739284347520,1.4835,199.18,199.07,5.0223]
[1739284347825,5.021,199.14,199.04,1.5854]
[1739284348025,5.021,199.14,199.09,5.022]
[1739284348227,1.4835,199.18,199.04,1.5854]
[1739284348627,0.03282281,199.13,199.09,0.03824451]
[1739284349028,1.5046,199.26,199.11,35.52092387]
[1739284349222,1.5046,199.26,199.15,35.52092387]
[1739284349430,1.607,199.27,199.15,35.52092387]
[1739284349625,1.607,199.27,199.19,35.52092387]
[1739284349831,5.0172,199.29,199.23,5.0183]
[1739284350030,1.5049,199.36,199.23,5.0183]
[1739284350331,0.03185047,199.28,199.24,0.03514263]
[1739284350526,5.0176,199.27,199.24,0.03514263]
[1739284350729,5.0176,199.27,199.23,5.0185]
[1739284350931,0.03439397,199.27,199.24,0.03260542]
[1739284352535,0.03439397,199.27,199.25,5.018]
[1739284352736,0.03439397,199.27,199.24,0.03260542]
[1739284355641,5.018,199.25,199.24,0.03260542]
[1739284356642,5.0195,199.2,199.11,0.2088]
[1739284357043,3.1098,199.26,199.15,5.0205]
[1739284357546,3.1098,199.26,199.11,0.2088]
[1739284357841,5.05640762,199.22,199.19,0.03785193]
[1739284358043,0.03740762,199.22,199.19,0.03785193]
[1739284359142,5.0193,199.2,199.19,0.03785193]
[1739284359442,0.03740762,199.22,199.19,0.03785193]
[1739284360139,0.03740762,199.22,199.1,35.52092387]
[1739284360341,5.0211,199.13,199.08,5.0221]
[1739284360545,35.52092387,199.19,199.04,1.5854]
[1739284360844,5.0211,199.13,199.07,5.0224]
[1739284361142,3.0707,199.27,199.05,35.52092387]
[1739284361143,35.52092387,199.22,199.05,35.52092387]
[1739284361337,5.0207,199.15,199.1,5.0218]
[1739284361538,0.03198348,199.12,199.08,0.03242241]
[1739284361940,35.52092387,199.22,199.05,35.79792387]
[1739284362141,0.03381501,199.12,199.08,0.03534316]
[1739284362341,0.03381501,199.12,199.05,35.79792387]